fUST/lending_fUST_20240715
["ID","MTS","AMOUNT","RATE_DAILY","PERIOD"]
[332224442,1721051450075,-500.0,0.00025205,2]
[332224443,1721051450085,-500.0,0.00025205,2]
[332224444,1721051450095,-500.0,0.00025205,2]
[332224445,1721051450105,-500.0,0.00025205,2]
[332224446,1721051450114,-500.0,0.00025205,2]
[332224447,1721051450123,-500.0,0.00025205,2]
[332224448,1721051450132,-347.88153597,0.00025205,2]
[332224449,1721051450142,-724.48,0.00025205,2]
[332224450,1721051450151,-418.702433,0.00025205,7]
[332224451,1721051450161,-418.702433,0.00025205,7]
[332224452,1721051450170,-8381.05,0.00025205,2]
[332224453,1721051450180,-859.65,0.00025205,2]
[332224454,1721051450189,-500.0,0.00025205,2]
[332224455,1721051450199,-504.13,0.00025205,2]
[332224456,1721051450208,-370.90260481,0.00025205,2]
[332224457,1721051450218,-500.0,0.00025205,2]
[332224458,1721051450227,-500.0,0.00025205,2]
[332224459,1721051450236,-500.0,0.00025205,2]
[332224460,1721051450246,-935.09,0.00025205,2]
[332224461,1721051450255,-500.0,0.00025205,2]
[332224462,1721051450265,-500.0,0.00025205,2]
[332224463,1721051450276,-500.0,0.00025205,2]
[332224464,1721051450285,-1251.5,0.00025205,2]
[332224465,1721051450295,-500.0,0.00025205,2]
[332224466,1721051450304,-500.0,0.00025205,2]
[332224467,1721051450313,-500.0,0.00025205,2]
[332224468,1721051450323,-294.55554637,0.00025205,2]
[332224469,1721051450332,-500.0,0.00025205,2]
[332224470,1721051450342,-9520.37,0.00025205,2]
[332224471,1721051450351,-500.0,0.00025205,2]
[332224472,1721051450360,-1309.88,0.00025205,2]
[332224473,1721051450369,-500.0,0.00025205,2]
[332224474,1721051450379,-500.0,0.00025205,2]
[332224475,1721051450388,-500.0,0.00025205,2]
[332224476,1721051450398,-500.0,0.00025205,2]
[332224477,1721051450407,-602.563231,0.00025205,7]
[332224478,1721051450417,-500.0,0.00025205,2]
[332224479,1721051450426,-579.08,0.00025205,2]
[332224480,1721051450435,-602.563231,0.00025205,7]
[332224481,1721051450445,-767.58,0.00025205,2]
[332224482,1721051450454,-500.0,0.00025205,2]
[332224483,1721051450464,-500.0,0.00025205,2]
[332224484,1721051450473,-500.0,0.00025205,2]
[332224485,1721051450482,-500.0,0.00025205,2]
[332224486,1721051450492,-508.07527546,0.00025205,2]
[332224487,1721051450501,-500.0,0.00025205,2]
[332224488,1721051450510,-500.0,0.00025205,2]
[332224489,1721051450519,-500.0,0.00025205,2]
[332224490,1721051450530,-763.44,0.00025205,2]
[332224491,1721051450540,-500.0,0.00025205,2]
[332224492,1721051450549,-500.0,0.00025205,2]
[332224493,1721051450558,-500.0,0.00025205,2]
[332224494,1721051450567,-156.33,0.0002537,35]
[332224495,1721051450577,-302.57642023,0.00025398,2]
[332224496,1721051450587,-911.0,0.000254,2]
[332224497,1721051450596,-566.82389179,0.00025419,2]
[332224498,1721051450606,-1970.0,0.00025477,2]
[332224499,1721051450615,-151.0,0.00025478,7]
[332224500,1721051450624,-537.498389,0.00025478,7]
[332224501,1721051450633,-537.498389,0.00025478,7]
[332224502,1721051450642,-151.0,0.00025478,2]
[332224503,1721051450652,-850.326556,0.00025478,7]
[332224504,1721051450661,-850.326565,0.00025478,7]
[332224505,1721051450671,-602.563231,0.00025478,7]
[332224506,1721051450680,-602.563231,0.00025478,7]
[332224507,1721051450690,-458.09538258,0.00025479,2]
[332224508,1721051450699,-602.96,0.00025479,2]
[332224509,1721051450709,-507.44700394,0.00025479,2]
[332224510,1721051450718,-500.0,0.00025479,2]
[332224511,1721051450727,-500.0,0.00025479,2]
[332224512,1721051450737,-500.0,0.00025479,2]
[332224513,1721051450746,-500.0,0.00025479,2]
[332224514,1721051450755,-500.0,0.00025479,2]
[332224515,1721051450764,-500.0,0.00025479,4]
[332224516,1721051450774,-500.0,0.00025479,2]
[332224517,1721051450787,-562.17850628,0.00025479,2]
[332224518,1721051450795,-500.0,0.00025479,2]
[332224519,1721051450805,-336.12749976,0.00025479,2]
[332224520,1721051450814,-413.89392276,0.00025479,2]
[332224521,1721051450823,-393.63978521,0.00025479,2]
[332224522,1721051450835,-500.0,0.00025479,2]
[332224523,1721051450845,-500.0,0.00025479,2]
[332224524,1721051450854,-500.0,0.00025479,2]
[332224525,1721051450865,-500.0,0.00025479,2]
[332224526,1721051450874,-500.0,0.00025479,2]
[332224527,1721051450884,-500.0,0.00025479,2]
[332224528,1721051450893,-500.0,0.00025479,2]
[332224529,1721051450902,-500.0,0.00025479,2]
[332224530,1721051450911,-500.0,0.00025479,2]
[332224531,1721051450921,-500.0,0.00025479,2]
[332224532,1721051450932,-500.0,0.00025479,2]
[332224533,1721051450941,-500.0,0.00025479,2]
[332224534,1721051450951,-333.12428344,0.00025479,2]
[332224535,1721051450960,-500.0,0.00025479,2]
[332224536,1721051450970,-500.0,0.00025479,2]
[332224537,1721051450979,-500.0,0.00025479,2]
[332224538,1721051450989,-254.07591802,0.00025479,2]
[332224539,1721051450998,-500.0,0.00025479,2]
[332224540,1721051451007,-447.38473016,0.00025479,2]
[332224541,1721051451017,-500.0,0.00025479,2]
[332224542,1721051451028,-500.0,0.00025479,2]
[332224543,1721051451037,-500.0,0.00025479,2]
[332224544,1721051451046,-488.83448304,0.00025479,2]
[332224545,1721051451055,-500.0,0.00025479,2]
[332224546,1721051451065,-500.0,0.00025479,2]
[332224547,1721051451075,-591.7,0.00025479,2]
[332224548,1721051451084,-500.0,0.00025479,2]
[332224549,1721051451094,-500.0,0.00025479,2]
[332224550,1721051451104,-500.0,0.00025479,2]
[332224551,1721051451113,-500.0,0.00025479,2]
[332224552,1721051451123,-452.20398071,0.00025479,2]
[332224553,1721051451131,-333.94993644,0.00025479,2]
[332224554,1721051451141,-500.0,0.00025479,2]
[332224555,1721051451150,-500.0,0.00025479,2]
[332224556,1721051451159,-500.0,0.00025479,2]
[332224557,1721051451169,-500.0,0.00025479,2]
[332224558,1721051451179,-500.0,0.00025479,2]
[332224559,1721051451189,-500.0,0.00025479,2]
[332224560,1721051451199,-500.0,0.00025479,2]
[332224561,1721051451209,-328.26234131,0.00025479,2]
[332224562,1721051451219,-500.0,0.00025479,2]
[332224563,1721051451228,-500.0,0.00025479,2]
[332224564,1721051451238,-500.0,0.00025479,2]
[332224565,1721051451247,-500.0,0.00025479,2]
[332224566,1721051451256,-484.25681201,0.00025479,2]
[332224567,1721051451267,-151.0,0.00025479,7]
[332224568,1721051451279,-500.0,0.00025479,2]
[332224569,1721051451289,-500.0,0.00025479,3]
[332224570,1721051451299,-500.0,0.00025479,2]
[332224571,1721051451309,-500.0,0.00025479,2]
[332224572,1721051451319,-500.0,0.00025479,2]
[332224573,1721051451329,-500.0,0.00025479,2]
[332224574,1721051451338,-537.498389,0.00025479,7]
[332224575,1721051451347,-500.0,0.00025479,2]
[332224576,1721051451358,-537.498389,0.00025479,7]
[332224577,1721051451367,-500.0,0.00025479,2]
[332224578,1721051451377,-500.0,0.00025479,2]
[332224579,1721051451386,-500.0,0.00025479,2]
[332224580,1721051451395,-500.0,0.00025479,2]
[332224581,1721051451405,-500.0,0.00025479,2]
[332224582,1721051451414,-500.0,0.00025479,2]
[332224583,1721051451424,-798.77,0.00025479,2]
[332224584,1721051451434,-672.84,0.00025479,2]
[332224585,1721051451444,-500.0,0.00025479,2]
[332224586,1721051451454,-500.0,0.00025479,2]
[332224587,1721051451464,-500.0,0.00025479,2]
[332224588,1721051451474,-500.0,0.00025479,2]
[332224589,1721051451483,-151.0,0.00025479,2]
[332224590,1721051451493,-500.0,0.00025479,2]
[332224591,1721051451503,-500.0,0.00025479,2]
[332224592,1721051451512,-500.0,0.00025479,2]
[332224593,1721051451525,-500.0,0.00025479,2]
[332224594,1721051451534,-500.0,0.00025479,2]
[332224595,1721051451544,-978.9,0.00025479,2]
[332224596,1721051451553,-817.75,0.00025479,2]
[332224597,1721051451563,-500.0,0.00025479,2]
[332224598,1721051451573,-500.0,0.00025479,2]
[332224599,1721051451582,-500.0,0.00025479,2]
[332224600,1721051451591,-500.0,0.00025479,2]
[332224601,1721051451601,-500.0,0.00025479,2]
[332224602,1721051451610,-500.0,0.00025479,2]
[332224603,1721051451620,-500.0,0.00025479,2]
[332224604,1721051451630,-500.0,0.00025479,2]
[332224605,1721051451639,-500.0,0.00025479,2]
[332224606,1721051451649,-500.0,0.00025479,2]
[332224607,1721051451659,-500.0,0.00025479,2]
[332224608,1721051451669,-500.0,0.00025479,2]
[332224609,1721051451679,-724.48,0.00025479,2]
[332224610,1721051451688,-418.702433,0.00025479,7]
[332224611,1721051451698,-418.702433,0.00025479,7]
[332224612,1721051451707,-418.702433,0.00025479,7]
[332224613,1721051451717,-8381.05,0.00025479,2]
[332224614,1721051451726,-418.70242595,0.00025479,7]
[332224615,1721051451735,-859.65,0.00025479,2]
[332224616,1721051451744,-500.0,0.00025479,2]
[332224617,1721051451753,-504.13,0.00025479,2]
[332224618,1721051451762,-500.0,0.00025479,2]
[332224619,1721051451774,-154.8107839,0.00025479,2]
[332224620,1721051451785,-935.09,0.00025479,2]
[332224621,1721051451795,-500.0,0.00025479,2]
[332224622,1721051451804,-1251.5,0.00025479,2]
[332224623,1721051451814,-332.16336884,0.00025479,2]
[332224624,1721051451824,-500.0,0.00025479,2]
[332224625,1721051451835,-500.0,0.00025479,2]
[332224626,1721051451844,-9520.37,0.00025479,2]
[332224627,1721051451854,-500.0,0.00025479,2]
[332224628,1721051451864,-1309.88,0.00025479,2]
[332224629,1721051451873,-500.0,0.00025479,2]
[332224630,1721051451883,-500.0,0.00025479,2]
[332224631,1721051451892,-500.0,0.00025479,2]
[332224632,1721051451901,-500.0,0.00025479,2]
[332224633,1721051451911,-602.563231,0.00025479,7]
[332224634,1721051451920,-189.63952494,0.00025479,2]
[332224635,1721051451929,-579.08,0.00025479,2]
[332224636,1721051451939,-602.563229,0.00025479,7]
[332224637,1721051451948,-767.58,0.00025479,2]
[332224638,1721051451958,-500.0,0.00025479,2]
[332224639,1721051451968,-500.0,0.00025479,2]
[332224640,1721051451977,-500.0,0.00025479,2]
[332224641,1721051451987,-763.44,0.00025479,2]
[332224642,1721051451996,-500.0,0.00025479,2]
[332224643,1721051452006,-500.0,0.00025479,2]
[332224644,1721051452015,-151.78440315,0.00025497,2]
[332224645,1721051452028,-7597.17804941,0.000255,2]
[332224648,1721051618244,7743.72236029,0.00014998,2]
[332224649,1721051645743,2126.25063044,0.00014999,2]
[332224650,1721051655785,155.57748648,0.00014999,2]
[332224651,1721051664981,842.47001101,0.00014999,2]
[332224652,1721051695489,155.01671966,0.00014999,2]
[332224654,1721051741088,817.52323236,0.00014999,2]
[332224655,1721051864072,230.27750003,0.00014999,2]
[332224656,1721051894881,-354.46681452,0.0001818,2]
[332224657,1721051894917,-912.12003413,0.0001818,2]
[332224664,1721052015111,518.1114155,0.00014999,2]
[332224670,1721052160376,441.3239895,0.00014999,2]
[332224671,1721052173799,194.39287455,0.00014999,2]
[332224672,1721052179212,576.0774013,0.00014999,2]
[332224673,1721052189820,212.98035589,0.00014999,2]
[332224674,1721052190232,159.8423972,0.00014999,2]
[332224692,1721052220662,790.7026203,0.00019,10]
[332224693,1721052228883,3000.0,0.000157,2]
[332224694,1721052230446,155.51415868,0.00014999,2]
[332224695,1721052230721,547.36693287,0.00015,2]
[332224696,1721052234587,212.17678397,0.00014999,2]
[332224697,1721052235721,182.82989065,0.00014999,2]
[332224698,1721052236959,209.38449537,0.00014999,2]
[332224700,1721052245880,4689.05538713,0.00014999,2]
[332224701,1721052246698,11083.31330172,0.00014999,2]
[332224702,1721052248521,177.75835486,0.00014999,2]
[332224703,1721052250775,353.61737607,0.00014999,2]
[332224727,1721052301957,2673.41041908,0.00014999,2]
[332224729,1721052312096,309.14983794,0.00015,2]
[332224730,1721052319431,909.7461121,0.00014999,2]
[332224731,1721052319670,158.35036999,0.00014999,2]
[332224733,1721052324069,2847.45878996,0.00015,2]
[332224737,1721052329849,345.81993579,0.00014999,2]
[332224738,1721052340237,159.74508638,0.00014999,2]
[332224740,1721052344072,2423.89779899,0.00015,2]
[332224741,1721052346295,171.32771551,0.00014999,2]
[332224742,1721052356072,1055.47074907,0.00014999,2]
[332224743,1721052356109,1434.44237247,0.00014999,2]
[332224744,1721052357975,154.68290005,0.00014999,2]
[332224745,1721052358261,154.68290005,0.00014999,2]
[332224746,1721052359172,160.11041109,0.00014999,2]
[332224747,1721052359718,196.00834721,0.00014999,2]
[332224748,1721052359749,1634.59229075,0.00014999,2]
[332224750,1721052361425,1287.68811622,0.00015,2]
[332224751,1721052362793,232.91862498,0.00014999,2]
[332224753,1721052367833,2129.50465136,0.00014999,2]
[332224754,1721052368297,591.2931009,0.00014999,2]
[332224755,1721052368361,662.70423016,0.00014999,2]
[332224756,1721052369907,155.37081854,0.00014999,2]
[332224757,1721052370768,390.61371959,0.00014999,2]
[332224758,1721052372541,183.17870589,0.00014999,2]
[332224759,1721052372653,1091.38318254,0.00014999,2]
[332224760,1721052373142,309.14983794,0.00014999,2]
[332224761,1721052374696,1500.0,0.00014999,2]
[332224763,1721052375053,230.14662138,0.00014999,2]
[332224764,1721052375344,350.04752595,0.00014999,2]
[332224765,1721052376148,4720.09136169,0.00014999,2]
[332224766,1721052376851,1105.10512281,0.00015,2]
[332224767,1721052377604,562.76300463,0.00014999,2]
[332224768,1721052380028,349.53101089,0.00014999,2]
[332224769,1721052382460,160.0,0.00014999,2]
[332224770,1721052383295,524.02241824,0.00014999,2]
[332224773,1721052384941,426.80021744,0.00014999,2]
[332224774,1721052386932,155.04376771,0.00014999,2]
[332224775,1721052389901,156.18767148,0.00014999,2]
[332224776,1721052406632,189.22865494,0.00014999,2]
[332224777,1721052413519,354.46681452,0.00014999,2]
[332224778,1721052415960,397.62940615,0.00014999,2]
[332224779,1721052428638,154.72968766,0.00014999,2]
[332224780,1721052429643,155.28228897,0.00014999,2]
[332224784,1721052449932,525.81685911,0.00014999,2]
[332224785,1721052454390,156.13467148,0.00014999,2]
[332224787,1721052478647,838.24500156,0.00014999,2]
[332224788,1721052481766,-1971.0,0.00015821,2]
[332224789,1721052482391,156.17659771,0.00014999,2]
[332224790,1721052484072,2414.76449425,0.00015,2]
[332224791,1721052487213,155.52510828,0.00014999,2]
[332224792,1721052488374,528.28715924,0.00014999,2]
[332224793,1721052489977,154.68290005,0.00014999,2]
[332224796,1721052516275,155.22726915,0.00014999,2]
[332224799,1721052526468,2643.5847864,0.00015204,2]
[332224800,1721052529900,309.04185686,0.00014999,2]
[332224801,1721052532661,195.56689952,0.00014999,2]
[332224802,1721052533672,458.65976805,0.00014999,2]
[332224803,1721052538460,-403.3773352,0.00015821,2]
[332224806,1721052538498,-227.77523833,0.00015995,2]
[332224808,1721052538548,-263.82821234,0.00015995,2]
[332224809,1721052538587,-367.32436119,0.00016155,2]
[332224810,1721052539451,909.7461121,0.00014999,2]
[332224812,1721052546925,552.17786472,0.00015,2]
[332224813,1721052547140,518.06504704,0.00014999,2]
[332224816,1721052578500,160.0,0.00014999,2]
[332224817,1721052591713,501.5294303,0.00015254,2]
[332224818,1721052597215,375.07183976,0.00014999,2]
[332224825,1721052611709,936.17071385,0.00014999,2]
[332224826,1721052614001,309.21151064,0.00014999,2]
[332224838,1721052631837,-427.33481809,0.00016155,2]
[332224839,1721052631847,-428.00568558,0.00016155,2]
[332224840,1721052631858,-1492.02183617,0.00016155,2]
[332224841,1721052631869,-2484.80128527,0.00016155,2]
[332224842,1721052631878,-300.0,0.00016252,2]
[332224843,1721052631887,-387.16691113,0.00016253,2]
[332224844,1721052631899,-47.80960891,0.00016253,2]
[332224845,1721052631908,-644.64745957,0.00016253,2]
[332224847,1721052631917,-195.01048906,0.00016253,2]
[332224848,1721052631926,-300.0,0.00016253,2]
[332224850,1721052631936,-2304.54455212,0.00016254,2]
[332224852,1721052631947,-18490.38669626,0.00016254,2]
[332224942,1721052638769,-36464.76557362,0.00016254,2]
[332224944,1721052638780,-243.25564885,0.00016255,2]
[332224946,1721052638789,-454.56837627,0.00016255,2]
[332224947,1721052638800,-282.89830455,0.00016255,2]
[332224949,1721052638811,-155.3810316,0.00016255,2]
[332224951,1721052638820,-195.83024215,0.00016255,2]
[332224952,1721052638830,-243.25564885,0.00016255,2]
[332224953,1721052638843,-250.0,0.00017243,2]
[332224954,1721052638853,-420.0,0.00017765,2]
[332224955,1721052638863,-420.0,0.00017877,2]
[332224956,1721052638872,-4303.3590127,0.00018,2]
[332224957,1721052638882,-354.46681452,0.0001818,2]
[332224958,1721052638891,-406.23417223,0.0001818,2]
[332224959,1721052638901,-286.809272,0.0001857,2]
[332224960,1721052638910,-266.42554384,0.00018798,2]
[332224961,1721052638920,-794.65917926,0.00018833,2]
[332224962,1721052638929,-1209.2973797,0.00019,10]
[332224963,1721052638939,-3759.5544885,0.00019048,2]
[332224964,1721052638949,-6080.8528845,0.00019179,2]
[332224965,1721052638959,-192.0,0.00019418,2]
[332224966,1721052638967,-587.0,0.00019665,2]
[332224967,1721052638988,-187.99674245,0.0002,2]
[332224968,1721052638999,-764.43027422,0.0002,2]
[332224969,1721052639009,-199.320544,0.00021096,2]
[332224970,1721052639020,-794.65917926,0.00021511,2]
[332224971,1721052639031,-193.0,0.00021631,2]
[332224972,1721052639041,-166.666666,0.00021918,2]
[332224973,1721052639051,-1424.78448955,0.0002243,2]
[332224974,1721052639062,-1831.93670338,0.00022932,3]
[332224975,1721052639079,-53191.97438762,0.00022932,3]
[332224976,1721052639089,-153.0,0.00023888,2]
[332224978,1721052639099,-164.0,0.00023888,2]
[332224980,1721052639110,-164.0,0.00023888,2]
[332224982,1721052639122,-164.0,0.00023888,2]
[332224984,1721052639132,-153.0,0.00023891,2]
[332224985,1721052639141,-153.0,0.00023891,2]
[332224986,1721052639151,-153.0,0.00023891,2]
[332224987,1721052639162,-153.0,0.00023891,2]
[332224988,1721052639171,-153.0,0.00023891,2]
[332224989,1721052639181,-164.0,0.00023891,2]
[332224990,1721052639194,-164.0,0.00023891,2]
[332224991,1721052639203,-164.0,0.00023891,2]
[332224992,1721052639214,-164.0,0.00023891,2]
[332224993,1721052639224,-164.0,0.00023891,2]
[332224994,1721052639234,-164.0,0.00023891,2]
[332224995,1721052639244,-164.0,0.00023891,2]
[332224996,1721052639253,-164.0,0.00023891,2]
[332224997,1721052639263,-164.0,0.00023891,2]
[332224998,1721052639272,-164.0,0.00023891,2]
[332224999,1721052639283,-164.0,0.00023891,2]
[332225000,1721052639293,-164.0,0.00023891,2]
[332225001,1721052639302,-164.0,0.00023891,2]
[332225002,1721052639313,-164.0,0.00023891,2]
[332225003,1721052639322,-153.0,0.00023891,2]
[332225005,1721052639332,-153.0,0.00023891,2]
[332225006,1721052639342,-153.0,0.00023891,2]
[332225007,1721052639352,-153.0,0.00023891,2]
[332225008,1721052639361,-153.0,0.00023891,2]
[332225009,1721052639371,-164.0,0.00023891,2]
[332225010,1721052639381,-164.0,0.00023891,2]
[332225011,1721052639391,-164.0,0.00023891,2]
[332225012,1721052639400,-164.0,0.00023891,2]
[332225013,1721052639409,-164.0,0.00023891,2]
[332225014,1721052639420,-164.0,0.00023891,2]
[332225015,1721052639430,-164.0,0.00023891,2]
[332225016,1721052639440,-164.0,0.00023891,2]
[332225017,1721052639451,-164.0,0.00023891,2]
[332225018,1721052639460,-164.0,0.00023891,2]
[332225019,1721052639470,-164.0,0.00023891,2]
[332225020,1721052639480,-164.0,0.00023891,2]
[332225022,1721052639490,-164.0,0.00023891,2]
[332225023,1721052639500,-164.0,0.00023891,2]
[332225024,1721052639509,-153.0,0.00023891,2]
[332225025,1721052639518,-153.0,0.00023891,2]
[332225026,1721052639528,-153.0,0.00023891,2]
[332225027,1721052639537,-153.0,0.00023891,2]
[332225028,1721052639547,-153.0,0.00023891,2]
[332225029,1721052639557,-164.0,0.00023891,2]
[332225030,1721052639568,-164.0,0.00023891,2]
[332225031,1721052639579,-164.0,0.00023891,2]
[332225033,1721052639589,-164.0,0.00023891,2]
[332225034,1721052639599,-164.0,0.00023891,2]
[332225036,1721052639609,-164.0,0.00023891,2]
[332225038,1721052639619,-164.0,0.00023891,2]
[332225040,1721052639629,-164.0,0.00023891,2]
[332225042,1721052639638,-164.0,0.00023891,2]
[332225044,1721052639648,-164.0,0.00023891,2]
[332225046,1721052639658,-164.0,0.00023891,2]
[332225048,1721052639669,-164.0,0.00023891,2]
[332225050,1721052639679,-164.0,0.00023891,2]
[332225051,1721052639689,-164.0,0.00023891,2]
[332225053,1721052639699,-153.0,0.00023891,2]
[332225055,1721052639709,-153.0,0.00023891,2]
[332225057,1721052639718,-153.0,0.00023891,2]
[332225059,1721052639729,-153.0,0.00023891,2]
[332225061,1721052639739,-153.0,0.00023891,2]
[332225063,1721052639749,-164.0,0.00023891,2]
[332225065,1721052639759,-164.0,0.00023891,2]
[332225067,1721052639769,-164.0,0.00023891,2]
[332225069,1721052639779,-164.0,0.00023891,2]
[332225071,1721052639788,-164.0,0.00023891,2]
[332225073,1721052639798,-164.0,0.00023891,2]
[332225075,1721052639807,-164.0,0.00023891,2]
[332225077,1721052639820,-164.0,0.00023891,2]
[332225079,1721052639830,-164.0,0.00023891,2]
[332225081,1721052639840,-164.0,0.00023891,2]
[332225083,1721052639849,-164.0,0.00023891,2]
[332225085,1721052639859,-164.0,0.00023891,2]
[332225087,1721052639869,-164.0,0.00023891,2]
[332225089,1721052639879,-164.0,0.00023891,2]
[332225091,1721052639888,-153.0,0.00023891,2]
[332225093,1721052639899,-153.0,0.00023891,2]
[332225094,1721052639908,-153.0,0.00023891,2]
[332225095,1721052639918,-153.0,0.00023891,2]
[332225096,1721052639927,-153.0,0.00023891,2]
[332225097,1721052639937,-164.0,0.00023891,2]
[332225098,1721052639947,-164.0,0.00023891,2]
[332225099,1721052639956,-164.0,0.00023891,2]
[332225100,1721052639966,-164.0,0.00023891,2]
[332225101,1721052639975,-164.0,0.00023891,2]
[332225102,1721052639987,-164.0,0.00023891,2]
[332225103,1721052639997,-164.0,0.00023891,2]
[332225104,1721052640008,-164.0,0.00023891,2]
[332225105,1721052640018,-164.0,0.00023891,2]
[332225106,1721052640029,-164.0,0.00023891,2]
[332225107,1721052640040,-164.0,0.00023891,2]
[332225108,1721052640050,-164.0,0.00023891,2]
[332225109,1721052640059,-164.0,0.00023891,2]
[332225110,1721052640069,-164.0,0.00023891,2]
[332225111,1721052640079,-153.0,0.00023894,2]
[332225112,1721052640089,-153.0,0.00023894,2]
[332225113,1721052640098,-153.0,0.00023894,2]
[332225114,1721052640109,-153.0,0.00023894,2]
[332225115,1721052640121,-153.0,0.00023894,2]
[332225116,1721052640131,-164.0,0.00023894,2]
[332225117,1721052640140,-164.0,0.00023894,2]
[332225118,1721052640152,-164.0,0.00023894,2]
[332225119,1721052640163,-164.0,0.00023894,2]
[332225121,1721052640172,-164.0,0.00023894,2]
[332225122,1721052640181,-164.0,0.00023894,2]
[332225124,1721052640193,-164.0,0.00023894,2]
[332225126,1721052640204,-164.0,0.00023894,2]
[332225128,1721052640213,-164.0,0.00023894,2]
[332225130,1721052640223,-164.0,0.00023894,2]
[332225132,1721052640234,-164.0,0.00023894,2]
[332225134,1721052640244,-164.0,0.00023894,2]
[332225136,1721052640253,-164.0,0.00023894,2]
[332225138,1721052640263,-164.0,0.00023894,2]
[332225140,1721052640272,-164.0,0.00023894,2]
[332225142,1721052640282,-164.0,0.00023894,2]
[332225144,1721052640291,-164.0,0.00023894,2]
[332225146,1721052640302,-164.0,0.00023894,2]
[332225148,1721052640312,-164.0,0.00023894,2]
[332225150,1721052640322,-164.0,0.00023894,2]
[332225152,1721052640332,-164.0,0.00023894,2]
[332225154,1721052640342,-164.0,0.00023894,2]
[332225156,1721052640351,-164.0,0.00023894,2]
[332225158,1721052640360,-164.0,0.00023894,2]
[332225160,1721052640370,-30000.0,0.00023968,2]
[332225162,1721052640379,-1361.74587991,0.00024,2]
[332225165,1721052640389,-293.5691494,0.00024078,2]
[332225166,1721052640398,-206.3900376,0.00024078,2]
[332225168,1721052640408,-153.0,0.00024078,2]
[332225171,1721052640418,-293.5691494,0.00024078,2]
[332225172,1721052640428,-206.3900376,0.00024078,2]
[332225174,1721052640438,-293.5691494,0.00024078,2]
[332225176,1721052640447,-293.5691494,0.00024082,2]
[332225178,1721052640457,-794.65917926,0.00024189,2]
[332225180,1721052640466,-150.0,0.00024249,2]
[332225182,1721052640475,-504.0,0.00024249,2]
[332225184,1721052640485,-206.3900376,0.00024278,2]
[332225186,1721052640495,-293.5691494,0.00024278,2]
[332225188,1721052640505,-1407.0,0.00024364,2]
[332225190,1721052640515,-206.3900376,0.00024384,2]
[332225192,1721052640525,-206.3900376,0.00024384,2]
[332225194,1721052640534,-293.5691494,0.00024384,2]
[332225196,1721052640544,-293.5691494,0.00024384,2]
[332225198,1721052640555,-293.5691494,0.00024384,2]
[332225201,1721052640565,-293.5691494,0.00024384,2]
[332225203,1721052640575,-55023.911091,0.00024417,3]
[332225205,1721052640585,-1435.10504201,0.00024427,2]
[332225207,1721052640594,-55023.911091,0.00024448,3]
[332225209,1721052640604,-34147.49985852,0.00024468,3]
[332225211,1721052640614,-231.00796818,0.00024516,2]
[332225213,1721052640624,-195.95157293,0.00024516,2]
[332225215,1721052640633,-500.0,0.00024516,2]
[332225217,1721052640643,-500.0,0.00024516,2]
[332225219,1721052640653,-606.55043262,0.00024516,2]
[332225221,1721052640663,-500.0,0.00024516,2]